Cogmind - Beta 14 @@@ ROGUE MODE // 2024.09.01 @ 02:03:09 Player: THN-L0C Result: Destroyed by D-53 Grenadier with Mini Grenade Launcher Performance ------------- Evolutions (0) 0 Regions Visited (2) 400 Robots Destroyed (6) 30 Value Destroyed (44) 44 Prototype IDs (0) 0 Alien Tech Used (0) 0 Bonus (88) 88 TOTAL SCORE: 562 Bonus ------- Follower Combat Kills 88 Cogmind --------- Core Integrity 0/250 Matter 300/300 Energy 99/100 System Corruption 0% Temperature Cool (0) Movement Core (50) Location -10/Mines Parts ------- > --- POWER (1) -------- (None) > --- PROPULSION (2) --- (None) > --- UTILITY (2) ------ (None) > --- WEAPON (2) ------- (None) > --- INVENTORY (5) ---- Aluminum Leg Improved Terrain Scanner Medium Laser Particle Gun Rocket Launcher Peak State ------------ > --- POWER ------------ Light Ion Engine > --- PROPULSION ------- Aluminum Leg Aluminum Leg > --- UTILITY ---------- Small Storage Unit Utility Shielding > --- WEAPON ----------- Particle Gun Light Assault Rifle > --- INVENTORY -------- Aluminum Leg Medium Matter Pod Improved Terrain Scanner Medium Laser Particle Gun Rocket Launcher [Rating: 9] Favorites ----------- Power Light Ion Engine Engine Light Ion Engine Propulsion Aluminum Leg Leg Aluminum Leg Utility Small Storage Unit Storage Small Storage Unit Protection Utility Shielding Weapon Light Assault Rifle Energy Gun Medium Laser Ballistic Gun Light Assault Rifle Launcher Grenade Launcher Build | -11 -10 -10 ------- Run | Yrd Mat Min Slots Evolved . | . . . Power . | . . . Propulsion . | . . . Utility . | . . . Weapon . | . . . Parts Attached 13 | 6 . 7 Power 1 | 1 . . Engine 1 | 1 . . Core . | . . . Reactor . | . . . Propulsion 4 | 2 . 2 Treads . | . . . Leg 4 | 2 . 2 Wheel . | . . . Hover . | . . . Flight . | . . . Utility 2 | 1 . 1 Device . | . . . Storage 1 | 1 . . Processor . | . . . Hackware . | . . . Protection 1 | . . 1 Artifact . | . . . Weapon 6 | 2 . 4 Energy Gun 3 | 1 . 2 Energy Cannon . | . . . Ballistic Gun 2 | 1 . 1 Ballistic Cannon . | . . . Launcher 1 | . . 1 Special Weapon . | . . . Impact Weapon . | . . . Slashing Weapon . | . . . Piercing Weapon . | . . . Special Melee Weapon . | . . . Unidentified Prototypes . | . . . Parts Lost 6 | . . 6 Power 1 | . . 1 Propulsion 3 | . . 3 Utility . | . . . Weapon 2 | . . 2 Highest Loss Streak 4 | . . 4 To Critical Strikes . | . . . Average Slot Usage (%) 68 | . 85 63 Engine 11 | . 14 11 Leg 17 | . 28 13 Storage 12 | . 14 11 Protection 5 | . . 7 Energy Gun 5 | . 14 2 Ballistic Gun 12 | . 14 11 Launcher 3 | . . 4 Peak Build Rating 9 | 6 6 9 Average Rating 4 | 4 6 4 On Entrance 4 | . 6 6 Naked Turns 61 | . . 61 Heaviest Build 13 | 11 11 13 Greatest Support 20 | 20 20 20 Greatest Overweight (x) 1 | . . 1 Average Overweight (x) . | . . . Largest Inventory Capacity 8 | 8 8 8 Average Capacity 7 | 7 8 7 Most Carried 6 | 1 3 6 Average Carried 2 | . 1 4 Final Capacity 8 | 8 8 5 Final Carried 5 | 1 3 5 Class Distribution -------------------- 100% | Mutant Dominant Class ---------------- Mutant | -10/Materials Mutant | -10/Mines Resources | -11 -10 -10 ----------- Run | Yrd Mat Min Matter Collected 411 | 272 . 139 Remotely . | . . . Salvage Created 236 | 151 . 85 Parts 11 | 10 . 1 Haulers Intercepted . | . . . Recyclers Shooed 1 | 1 . . Parts Field Recycled . | . . . Retrieved Matter . | . . . Parts Self-Destructed . | . . . Prevented . | . . . Kills | -11 -10 -10 ------- Run | Yrd Mat Min Combat Hostiles Destroyed 15 | . . 15 Guns 3 | . . 3 AOE 12 | . . 12 Classes Destroyed 4 | 2 . 2 Tunneler 4 | 4 . . Recycler 1 | 1 . . Swarmer 1 | . . 1 Assembled 14 | . . 14 Best Kill Streak 13 | 5 . 13 Combat Bots Only 13 | . . 13 Max Kills in Single Turn 8 | 1 . 8 Gunslinging . | . . . Exploded 7 | . . 7 Melee . | . . . Uniques/NPCs Destroyed . | . . . Combat | -11 -10 -10 -------- Run | Yrd Mat Min Hostile Shots Fired 63 | . . 63 Missed 21 | . . 21 Damage Taken 875 | . . 875 Core 264 | . . 264 Absorbed by Shields . | . . . Redirected to Shielding 2 | . . 2 Core Remaining (%) 100 | 100 . . Volleys Fired 25 | 12 . 13 Largest 2 | 2 . 2 Hottest 70 | 70 . 50 Shots Fired 42 | 24 . 18 Gun 36 | 24 . 12 Cannon . | . . . Launcher 6 | . . 6 Special . | . . . Kinetic 24 | 12 . 12 Thermal 12 | 12 . . Explosive 6 | . . 6 Electromagnetic . | . . . Robot Hit Streak 12 | 12 . 2 Robot Miss Streak 2 | 2 . 2 Penetration Max . | . . . Secondary Targets . | . . . Shots Hit Robots 25 | 19 . 6 Core Hits 34 | 9 . 25 Critical Kills . | . . . Critical Parts Destroyed . | . . . Critical Strikes 1 | 1 . . Burn 1 | 1 . . Melee Attacks . | . . . Impact . | . . . Slashing . | . . . Piercing . | . . . Sneak Attacks . | . . . Combat Hostiles . | . . . Follow-up Attacks . | . . . Damage Inflicted 959 | 207 . 752 Guns 251 | 206 . 45 Cannons . | . . . Explosions 707 | . . 707 Melee . | . . . Ramming 1 | 1 . . Kinetic 124 | 79 . 45 Thermal 127 | 127 . . Explosive 707 | . . 707 Electromagnetic . | . . . Impact . | . . . Slashing . | . . . Piercing . | . . . Highest Corruption . | . . . Average Corruption . | . . . Corruption Purged . | . . . Corruption Blocked . | . . . Overload Shots . | . . . Overflow Damage 19 | . . 19 Projectiles . | . . . Explosions 19 | . . 19 Melee . | . . . Knockbacks . | . . . Impact . | . . . Kinetic . | . . . Secondary . | . . . Self-Inflicted Damage 11 | . . 11 Shots 2 | . . 2 Rammed . | . . . Targets Rammed 3 | 2 1 . Kicked 3 | 2 1 . Crushed . | . . . Highest Temperature 180 | 180 . 30 Average Temperature 71 | 93 . 12 Received Heat Transfer 76 | . . 76 Siege Activations . | . . . Robots Corrupted . | . . . Combat Hostiles . | . . . Parts Fried . | . . . Impact Corruptions . | . . . Robots Melted . | . . . Combat Hostiles . | . . . Parts Melted . | . . . Heat Transferred 444 | 444 . . Parts Sabotaged . | . . . Parts Stolen . | . . . Parts Stripped . | . . . Power Chain Reactions . | . . . Alert | -11 -10 -10 ------- Run | Yrd Mat Min Peak Influence 188 | 25 16 188 Initial 16 | . 16 6 Average 43 | 8 16 62 Maximum Alert Level . | . . . Low Security (%) 100 | 100 100 100 Level 1 . | . . . Level 2 . | . . . Level 3 . | . . . Level 4 . | . . . Level 5 . | . . . High Security . | . . . Max Security . | . . . Squads Dispatched . | . . . Investigation . | . . . Extermination . | . . . Reinforcement . | . . . Assault . | . . . Garrison . | . . . Intercept . | . . . Searches Triggered . | . . . Construction Impeded . | . . . Haulers Reinforced . | . . . Active Scanning Responses . | . . . Cargo Convoy Interrupts . | . . . Stealth | -11 -10 -10 --------- Run | Yrd Mat Min Distress Signals . | . . . Communications Jammed . | . . . Distress Signals . | . . . Times Spotted 28 | . 1 27 Peak Tracking Total 14 | . 1 14 Tactical Retreats 1 | . . 1 Traps | -11 -10 -10 ------- Run | Yrd Mat Min Traps Triggered . | . . . Indirectly . | . . . Trap Hack Attempts . | . . . Triggered . | . . . Disarmed . | . . . Reprogrammed . | . . . Reused . | . . . Traps Extracted . | . . . Installed . | . . . Triggered . | . . . Machines | -11 -10 -10 ---------- Run | Yrd Mat Min Machines Disabled . | . . . Max in Single Turn . | . . . Machines Repaired . | . . . Machines Dismantled . | . . . Machines Sabotaged . | . . . Overloaded Fab Kills . | . . . Hacking | -11 -10 -10 --------- Run | Yrd Mat Min Machines Accessed . | . . . Terminals . | . . . Fabricators . | . . . Repair Stations . | . . . Recycling Units . | . . . Scanalyzers . | . . . Garrison Access . | . . . Total Hacks . | . . . Successful . | . . . Failed . | . . . Catastrophic . | . . . Database Lockouts . | . . . Manual . | . . . Terminals . | . . . Fabricators . | . . . Repair Stations . | . . . Recycling Units . | . . . Scanalyzers . | . . . Garrison Access . | . . . Terminal Hacks . | . . . Fabricator Hacks . | . . . Repair Station Hacks . | . . . Recycling Unit Hacks . | . . . Scanalyzer . | . . . Garrison Access Hacks . | . . . Unauthorized Hacks . | . . . Terminals . | . . . Fabricators . | . . . Repair Stations . | . . . Recycling Units . | . . . Scanalyzers . | . . . Garrison Access . | . . . Data Cores Recovered . | . . . Used . | . . . Hacking Detections . | . . . Full Trace Events . | . . . Feedback Events . | . . . Feedback Blocked . | . . . Robot Schematics Acquired . | . . . Robots Built . | . . . Authchips . | . . . Time . | . . . Total Robot Build Rating . | . . . Part Schematics Acquired . | . . . Parts Built . | . . . Authchips . | . . . Time . | . . . Total Part Build Rating . | . . . Parts Repaired . | . . . Time . | . . . Parts Recycled . | . . . Recycled Matter . | . . . Retrieved Matter . | . . . Retrieved Components . | . . . Parts Scanalyzed . | . . . Part Schematics Acquired . | . . . Parts Damaged . | . . . Bothacking | -11 -10 -10 ------------ Run | Yrd Mat Min Used RIF Installer . | . . . Robots Hacked . | . . . Non-combat . | . . . Combat . | . . . Robot Hacks Applied . | . . . Relay Couplers Released . | . . . Fabnet Peak Effective % . | . . . Robots Rewired . | . . . Allies Hacked . | . . . Hacks Repelled . | . . . Allies | -11 -10 -10 -------- Run | Yrd Mat Min Total Allies 3 | . . 3 Largest Group 3 | . . 3 Highest-Rated Group 40 | . . 40 Highest-Rated Ally 16 | . . 16 Total Orders . | . . . Ally Attacks 17 | . . 17 Total Damage 190 | . . 190 Kills 6 | . . 6 Allies Corrupted . | . . . Allies Melted . | . . . Intel | -11 -10 -10 ------- Run | Yrd Mat Min Robot Analysis Total . | . . . Derelict Logs Recovered . | . . . Drone Launches . | . . . Drone Recoveries . | . . . Exploration | -11 -10 -10 ------------- Run | Yrd Mat Min Turns Passed 575 | 104 122 349 Spaces Moved 346 | 53 100 193 Core 28 | 9 . 19 Treads . | . . . Legs 318 | 44 100 174 Wheels . | . . . Hover . | . . . Flight . | . . . Fastest Speed 50 | 50 120 50 Average Speed 125 | 108 120 133 Slowest Speed 190 | 120 120 190 Overloaded Moves . | . . . Propulsion Burnouts . | . . . Robots Hopped . | . . . Cave-ins Triggered . | . . . Exploration Rate (%) 26 | 5 19 55 Regions Visited 2 Branch Regions 1 Pre-discovered Areas . | . . . Known Exits Taken . | . . . Unknown Exits Taken 2 | 1 1 . Scrap Searched 1 | . . 1 Spaces Dug . | . . . Terrain Destroyed 33 | . . 33 Melee . | . . . Projectile . | . . . AOE 33 | . . 33 Terrain Rammed . | . . . Walls Destroyed . | . . . Machines Disabled . | . . . Actions | -11 -10 -10 --------- Run | Yrd Mat Min Total 442 | 74 102 266 Wait 53 | 1 . 52 Move 345 | 53 99 193 Hop . | . . . Pick Up 4 | 1 2 1 Fast Attach 10 | 6 . 4 Attach . | . . . Detach . | . . . Swap 3 | . . 3 Drop . | . . . Fire 25 | 12 . 13 Melee . | . . . Ram . | . . . Kick 2 | 1 1 . Crush . | . . . Escape Stasis . | . . . Rewire . | . . . Trap . | . . . Miscellaneous . | . . . Route ------- -11/Scrapyard -10/Materials -10/Mines History --------- Turn | Location | Event 21 | -11/Scrapyard | Discovered new exit (range 15) 105 | -11/Scrapyard | Entered Materials 166 | -10/Materials | Discovered new exit (range 15) 227 | -10/Materials | Entered Mines 228 | -10/Mines | Assembled infested the area 234 | -10/Mines | Received a Rocket Launcher from a helpful Derelict 298 | -10/Mines | Destroyed 13 combat bots 307 | -10/Mines | Build established: Mutant 392 | -10/Mines | Assisted by bots powering up and referring to "LRC-V3" 506 | -10/Mines | Core integrity fell below 50% 515 | -10/Mines | Released all parts (4) 535 | -10/Mines | Lost 3 allies 545 | -10/Mines | Lost 4 parts (1p2n1w) 576 | -10/Mines | Destroyed by D-53 Grenadier with Mini Grenade Launcher Last Messages --------------- 00493_ K-01 Serf collects debris. 00500_ Mercenary 1a destroyed. 00500_ K-01 Serf destroyed. 00500_ R-06 Scavenger destroyed. 00500_ Acquired 11 matter. 00501_ The unstable cave ceiling collapses. 00501_ Sml. Storage Unit crushed. 00502_ Lgt. Ion Engine destroyed. 00503_ K-01 Serf collects debris. 00504_ Trooper 1a destroyed. 00505_ Aluminum Leg destroyed. 00509_ The unstable cave ceiling collapses. 00514_ Aluminum Leg destroyed. 00515_ The unstable cave ceiling collapses. 00515_ Released Particle Gun. 00515_ Released Sml. Storage Unit. 00515_ Released Utility Shielding. 00515_ Released Lgt. Assault Rifle. 00516_ The unstable cave ceiling collapses. 00518_ T-07 Excavator is excavating. Map ----- +----------------------------------------------------+ | ?????????????????????# ### #??? | | ?????????????????????# #??? | | ?????????????????????# #??? | | ?????????????????????##### #??? | | ?????????????????????????# #??" | | ??????###????????????????# ## " | | ?????## #???????????????# " | | ????## #??????????????## ## | | ????# #####???????????# #?? | | ????# #??????###### #??? | | ????# # #####?## #??? | | ????# ### [#####??? | | ?????# # %*[##????? | | ????## ! [ ==[%=#????? | | ???## [! # % #????? | | ???# [! # [= ##???? | | ???# #??? | | ???# # # | | ???## #### # [ | | ????#### #??# ### * | | ???????# d#??# #?? | | ???????# ##?## ## | | ???##### #??# | | ???# #?? | | ???## d #? ### | | ???# @ #? #?# | | ???# ## ##? ### | | ???# # ### ##?? ###??# | | ???# ###??# ###???### #????? | | ??? ?????##????????? ????? | | ??# t#???????????????? ?????? | | ??### #???????????????? ?????? | | ????####???????????????????????? | | ???????????????????????????????? | | ???????????????????????????????? | | ???????????????????????????????? | | ???????????????????????????????? | | ???????????????????????????????? | | ???????????????????????????????? | | ???????????????????????????????? | | ???????????????????????????????? | | ???????????????????????????????? | | ???????????????????????????????? | | ???????????????????????????????? | | ???????????????????????????????? | | ???????????????????????????????? | | | | | | | | | +----------------------------------------------------+ Best States ------------- Heat Dissipation 25 Energy Generation 10 Energy Capacity 125 Matter Stores 300 Matter Capacity 300 Sight Range 16 Terrain Scan Density 10 Utility Shielding 33 Evasion (%) 55 Item Schematics ----------------- None Robot Schematics ------------------ None Fabricated ------------ Nothing Alien Tech Used ----------------- None Achievements -------------- None Challenges ------------ None Game ------ Seed CombatHybridProtomatter Manual? 0 Play Time 00:05:48 Cumulative 177.7 hours Start 2024.09.01 @ 01:59:33 End 2024.09.01 @ 02:03:09 Sessions 1 Manual Loads 0 Difficulty Rogue Special Mode None Game No. 146 Rogue 146 Adventurer 0 Explorer 0 Win Type - Total 1 Types 0/0/0/1/0/0/0/0/0 Lore% 62 Gallery% 71 Achievement% 52 Wizard Run 0 Options --------- Layout 2 ASCII 0 Keyboard 1 Movement Vi Keybinds 0 Fullscreen 1 Font 32/SmallcapsGlow Map View 77x44 Zoom Use 0% Tactical HUD 1 Map Filters NONE Filters NONE Steam 1 RUN: 4ba7ecc6-77c2-4b7b-a509-5bbbaf433845